[Event "Live Chess"]
[Site "Chess.com"]
[Date "2023.05.21"]
[Round "-"]
[White "peter-785"]
[Black "Richardallis"]
[Result "0-1"]
[WhiteElo "1183"]
[BlackElo "1865"]
[TimeControl "300"]
[EndTime "3:24:20 PDT"]
[Termination "Richardallis won by resignation"]

1. e4 {[%clk 0:04:59]} 1... d5 {[%clk 0:04:58.4]} 2. exd5 {[%clk 0:04:57.1]}
2... Nf6 {[%clk 0:04:57.8]} 3. Nc3 {[%clk 0:04:53.8]} 3... Nxd5 {[%clk
0:04:57.1]} 4. Nxd5 {[%clk 0:04:52.2]} 4... Qxd5 {[%clk 0:04:56.6]} 5. b3 {[%clk
0:04:40.9]} 5... Qe5+ {[%clk 0:04:54.5]} 6. Qe2 {[%clk 0:04:34.7]} 6... Qxa1
{[%clk 0:04:53]} 7. Kd1 {[%clk 0:04:32.8]} 7... e6 {[%clk 0:04:49.7]} 8. Qb5+
{[%clk 0:04:31.1]} 8... c6 {[%clk 0:04:48.1]} 9. Qg5 {[%clk 0:04:19.4]} 9... h6
{[%clk 0:04:43.4]} 10. Qg3 {[%clk 0:04:12.6]} 10... Ba3 {[%clk 0:04:38.5]} 11.
Qc7 {[%clk 0:04:04]} 11... Qxc1+ {[%clk 0:04:34.5]} 12. Ke2 {[%clk 0:04:03.4]}
12... Nd7 {[%clk 0:04:32.6]} 13. Nf3 {[%clk 0:03:57.6]} 13... Qxc2 {[%clk
0:04:30.7]} 14. Nd4 {[%clk 0:03:55]} 14... Qe4+ {[%clk 0:04:27.9]} 15. Kd1
{[%clk 0:03:51.6]} 15... Qxd4 {[%clk 0:04:26.5]} 16. Be2 {[%clk 0:03:47.6]}
16... Qxf2 {[%clk 0:04:23.8]} 17. Re1 {[%clk 0:03:43.3]} 17... O-O {[%clk
0:04:21.5]} 18. Qa5 {[%clk 0:03:33.3]} 18... Qc5 {[%clk 0:04:17.2]} 0-1

[Event "Live Chess"]
[Site "Chess.com"]
[Date "2023.05.21"]
[Round "-"]
[White "lateforthesky"]
[Black "garyjc"]
[Result "1-0"]
[WhiteElo "2106"]
[BlackElo "1045"]
[TimeControl "300"]
[EndTime "3:24:26 PDT"]
[Termination "lateforthesky won by resignation"]

1. e4 {[%clk 0:04:58.7]} 1... c5 {[%clk 0:04:58.1]} 2. d4 {[%clk 0:04:56.4]}
2... cxd4 {[%clk 0:04:56.1]} 3. c3 {[%clk 0:04:55.3]} 3... dxc3 {[%clk
0:04:50.2]} 4. Nxc3 {[%clk 0:04:54.2]} 4... Nc6 {[%clk 0:04:49.5]} 5. Nf3 {[%clk
0:04:53]} 5... g6 {[%clk 0:04:44.3]} 6. Bc4 {[%clk 0:04:51.4]} 6... Bg7 {[%clk
0:04:40.5]} 7. O-O {[%clk 0:04:50]} 7... d6 {[%clk 0:04:30.3]} 8. Qe2 {[%clk
0:04:48.6]} 8... Nf6 {[%clk 0:04:11.3]} 9. Rd1 {[%clk 0:04:46]} 9... O-O {[%clk
0:04:08.7]} 10. Bg5 {[%clk 0:04:25.8]} 10... a6 {[%clk 0:04:05.5]} 11. e5 {[%clk
0:04:11.4]} 11... Nd7 {[%clk 0:03:42.2]} 12. exd6 {[%clk 0:04:10.2]} 12... exd6
{[%clk 0:03:36.5]} 13. Bxd8 {[%clk 0:04:07.9]} 1-0

[Event "Live Chess"]
[Site "Chess.com"]
[Date "2023.05.21"]
[Round "-"]
[White "BJAW87"]
[Black "Duke_of_Bebington"]
[Result "1-0"]
[WhiteElo "1449"]
[BlackElo "1577"]
[TimeControl "300"]
[EndTime "3:24:29 PDT"]
[Termination "BJAW87 won by checkmate"]

1. e4 {[%clk 0:04:59.2]} 1... e5 {[%clk 0:04:59]} 2. Nc3 {[%clk 0:04:58.5]} 2...
Nf6 {[%clk 0:04:57]} 3. f4 {[%clk 0:04:58]} 3... d6 {[%clk 0:04:54.6]} 4. fxe5
{[%clk 0:04:57.6]} 4... dxe5 {[%clk 0:04:52.9]} 5. Nf3 {[%clk 0:04:57]} 5... Nc6
{[%clk 0:04:49.3]} 6. Bc4 {[%clk 0:04:55.8]} 6... Bd6 {[%clk 0:04:43]} 7. O-O
{[%clk 0:04:52]} 7... O-O {[%clk 0:04:40.5]} 8. d3 {[%clk 0:04:50.4]} 8... a6
{[%clk 0:04:34.6]} 9. Ng5 {[%clk 0:04:47]} 9... h6 {[%clk 0:04:25.3]} 10. Nxf7
{[%clk 0:04:32.7]} 10... Rxf7 {[%clk 0:04:25.2]} 11. Bxf7+ {[%clk 0:04:32.5]}
11... Kxf7 {[%clk 0:04:24.6]} 12. Qh5+ {[%clk 0:04:29.9]} 12... Kg8 {[%clk
0:04:21]} 13. Qg6 {[%clk 0:04:28.2]} 13... Qe8 {[%clk 0:04:02.4]} 14. Rxf6
{[%clk 0:04:25.3]} 14... Qxg6 {[%clk 0:03:58.6]} 15. Rxg6 {[%clk 0:04:25.2]}
15... Nd4 {[%clk 0:03:56]} 16. Bxh6 {[%clk 0:04:06.7]} 16... Bf8 {[%clk
0:03:51.1]} 17. Nd5 {[%clk 0:03:57.5]} 17... Kh8 {[%clk 0:03:44.5]} 18. Bd2
{[%clk 0:03:42.2]} 18... Nxc2 {[%clk 0:03:41.8]} 19. Rc1 {[%clk 0:03:41.3]}
19... Nd4 {[%clk 0:03:40.3]} 20. Rxc7 {[%clk 0:03:31.9]} 20... Be6 {[%clk
0:03:31.7]} 21. Nb6 {[%clk 0:03:09.6]} 21... Rd8 {[%clk 0:03:24.9]} 22. Na4
{[%clk 0:02:58.4]} 22... Bxa2 {[%clk 0:03:12.7]} 23. Nc5 {[%clk 0:02:51.2]}
23... Bg8 {[%clk 0:02:56.3]} 24. Nxb7 {[%clk 0:02:45.4]} 24... Rb8 {[%clk
0:02:51.1]} 25. Bc3 {[%clk 0:02:30.8]} 25... Ne2+ {[%clk 0:02:47.1]} 26. Kf1
{[%clk 0:02:26.4]} 26... Nf4 {[%clk 0:02:42.8]} 27. Rxa6 {[%clk 0:02:23.7]}
27... Nxd3 {[%clk 0:02:32.1]} 28. Nd6 {[%clk 0:02:17]} 28... Bh7 {[%clk
0:02:20.2]} 29. Nf7+ {[%clk 0:01:52.5]} 29... Kg8 {[%clk 0:02:13.9]} 30. Nxe5
{[%clk 0:01:49.4]} 30... Bxe4 {[%clk 0:02:01.7]} 31. Nd7 {[%clk 0:01:43]} 31...
Rd8 {[%clk 0:01:45.4]} 32. Nxf8 {[%clk 0:01:41.6]} 32... Rxf8+ {[%clk
0:01:43.7]} 33. Ke2 {[%clk 0:01:38.4]} 33... Nf4+ {[%clk 0:01:38.3]} 34. Ke3
{[%clk 0:01:37.4]} 34... Nd5+ {[%clk 0:01:34.2]} 35. Kxe4 {[%clk 0:01:35.6]}
35... Nxc7 {[%clk 0:01:33.7]} 36. Ra7 {[%clk 0:01:24.4]} 36... Rf7 {[%clk
0:01:31.8]} 37. Be5 {[%clk 0:01:14.1]} 37... Re7 {[%clk 0:01:24.5]} 38. Rxc7
{[%clk 0:01:09.2]} 38... Rxc7 {[%clk 0:01:23]} 39. Bxc7 {[%clk 0:01:09.1]} 39...
Kf7 {[%clk 0:01:22.6]} 40. Kd5 {[%clk 0:01:06.2]} 40... Ke7 {[%clk 0:01:21.6]}
41. Kc6 {[%clk 0:01:03.9]} 41... g5 {[%clk 0:01:19.9]} 42. b4 {[%clk 0:01:03.6]}
42... Ke6 {[%clk 0:01:18.7]} 43. b5 {[%clk 0:01:03.2]} 43... Kf5 {[%clk
0:01:17.9]} 44. b6 {[%clk 0:01:02.6]} 44... g4 {[%clk 0:01:17.2]} 45. b7 {[%clk
0:01:01.8]} 45... Ke4 {[%clk 0:01:16.8]} 46. b8=Q {[%clk 0:01:01.1]} 46... g3
{[%clk 0:01:16.1]} 47. Bxg3 {[%clk 0:01:00.2]} 47... Ke3 {[%clk 0:01:15]} 48.
Qe5+ {[%clk 0:00:59.1]} 48... Kd2 {[%clk 0:01:14.2]} 49. Bf4+ {[%clk 0:00:58.4]}
49... Kd1 {[%clk 0:01:13.1]} 50. h4 {[%clk 0:00:57.7]} 50... Kc2 {[%clk
0:01:10.9]} 51. h5 {[%clk 0:00:57]} 51... Kd1 {[%clk 0:01:09.6]} 52. h6 {[%clk
0:00:56.5]} 52... Kc2 {[%clk 0:01:09.5]} 53. h7 {[%clk 0:00:56.1]} 53... Kd1
{[%clk 0:01:09.4]} 54. h8=Q {[%clk 0:00:55.6]} 54... Kc2 {[%clk 0:01:09.3]} 55.
Qh7+ {[%clk 0:00:54.9]} 55... Kd1 {[%clk 0:01:09.2]} 56. Qd4+ {[%clk 0:00:53.4]}
56... Ke1 {[%clk 0:01:08]} 57. Bg3+ {[%clk 0:00:52.1]} 57... Kf1 {[%clk
0:01:07.2]} 58. Qdd3+ {[%clk 0:00:44.9]} 58... Kg1 {[%clk 0:01:04.1]} 59. Qb1+
{[%clk 0:00:40.7]} 59... Kxg2 {[%clk 0:00:55.5]} 60. Qh2+ {[%clk 0:00:38.6]}
60... Kf3 {[%clk 0:00:53.6]} 61. Qd3+ {[%clk 0:00:35.2]} 61... Kg4 {[%clk
0:00:52.2]} 62. Qe4+ {[%clk 0:00:32.8]} 62... Kg5 {[%clk 0:00:51.2]} 63. Qhh4#
{[%clk 0:00:30.7]} 1-0

[Event "Live Chess"]
[Site "Chess.com"]
[Date "2023.05.21"]
[Round "-"]
[White "JohanKjeldahl"]
[Black "WilliamofOrange16th"]
[Result "1/2-1/2"]
[WhiteElo "1892"]
[BlackElo "1873"]
[TimeControl "300"]
[EndTime "3:24:40 PDT"]
[Termination "Game drawn by agreement"]

1. c4 {[%clk 0:04:57.7]} 1... e5 {[%clk 0:04:58.3]} 2. Nc3 {[%clk 0:04:56.6]}
2... Nc6 {[%clk 0:04:57.3]} 3. e3 {[%clk 0:04:53.7]} 3... Nf6 {[%clk 0:04:54.8]}
4. Nf3 {[%clk 0:04:51.8]} 4... e4 {[%clk 0:04:52.9]} 5. Ng5 {[%clk 0:04:50.2]}
5... Qe7 {[%clk 0:04:50.9]} 6. Be2 {[%clk 0:04:46.1]} 6... h6 {[%clk 0:04:49.9]}
7. Nh3 {[%clk 0:04:43.9]} 7... d6 {[%clk 0:04:48.7]} 8. Nf4 {[%clk 0:04:41.8]}
8... g5 {[%clk 0:04:47]} 9. Nfd5 {[%clk 0:04:40.1]} 9... Nxd5 {[%clk 0:04:46.2]}
10. Nxd5 {[%clk 0:04:39.1]} 10... Qd8 {[%clk 0:04:45.7]} 11. d4 {[%clk
0:04:30.7]} 11... Bg7 {[%clk 0:04:37.3]} 12. b3 {[%clk 0:04:29.2]} 12... O-O
{[%clk 0:04:36.1]} 13. Bb2 {[%clk 0:04:28]} 13... f5 {[%clk 0:04:35.4]} 14. Qc2
{[%clk 0:04:25]} 14... Ne7 {[%clk 0:04:34.4]} 15. Rc1 {[%clk 0:04:13.6]} 15...
c6 {[%clk 0:04:29.5]} 16. Nxe7+ {[%clk 0:04:09.9]} 16... Qxe7 {[%clk 0:04:29.4]}
17. d5 {[%clk 0:04:07.3]} 17... c5 {[%clk 0:04:25.6]} 18. Bxg7 {[%clk
0:04:04.8]} 18... Qxg7 {[%clk 0:04:25.5]} 19. Qc3 {[%clk 0:03:59.6]} 19... Bd7
{[%clk 0:04:22.5]} 20. Qxg7+ {[%clk 0:03:54.2]} 20... Kxg7 {[%clk 0:04:22.4]}
21. h4 {[%clk 0:03:52.8]} 21... Kg6 {[%clk 0:04:15.9]} 22. hxg5 {[%clk
0:03:45.4]} 22... hxg5 {[%clk 0:04:15.1]} 23. Kd2 {[%clk 0:03:44.5]} 23... Rh8
{[%clk 0:04:13.1]} 24. g3 {[%clk 0:03:34.5]} 1/2-1/2

[Event "Live Chess"]
[Site "Chess.com"]
[Date "2023.05.21"]
[Round "-"]
[White "apl_trainer"]
[Black "Sweet-O"]
[Result "1-0"]
[WhiteElo "1772"]
[BlackElo "1423"]
[TimeControl "300"]
[EndTime "3:24:47 PDT"]
[Termination "apl_trainer won by checkmate"]

1. d4 {[%clk 0:04:58.3]} 1... e6 {[%clk 0:04:58.3]} 2. c4 {[%clk 0:04:57.2]}
2... c5 {[%clk 0:04:57.5]} 3. d5 {[%clk 0:04:55.6]} 3... Be7 {[%clk 0:04:54.3]}
4. Nc3 {[%clk 0:04:54]} 4... Nf6 {[%clk 0:04:52.9]} 5. e4 {[%clk 0:04:52.5]}
5... d6 {[%clk 0:04:50.9]} 6. f4 {[%clk 0:04:50.2]} 6... O-O {[%clk 0:04:49.8]}
7. Nf3 {[%clk 0:04:49]} 7... Nbd7 {[%clk 0:04:48.4]} 8. Bd3 {[%clk 0:04:45.2]}
8... e5 {[%clk 0:04:47.3]} 9. f5 {[%clk 0:04:41.4]} 9... Ng4 {[%clk 0:04:44.9]}
10. O-O {[%clk 0:04:36.7]} 10... Ndf6 {[%clk 0:04:38.7]} 11. h3 {[%clk
0:04:34.2]} 11... Nh6 {[%clk 0:04:37.6]} 12. g4 {[%clk 0:04:33.2]} 12... Nd7
{[%clk 0:04:32.8]} 13. g5 {[%clk 0:04:27.5]} 13... Kh8 {[%clk 0:04:26.4]} 14.
gxh6 {[%clk 0:04:24.6]} 14... gxh6 {[%clk 0:04:26.3]} 15. Kh2 {[%clk 0:04:21.1]}
15... h5 {[%clk 0:04:15.5]} 16. Rg1 {[%clk 0:04:17.1]} 16... Nf6 {[%clk
0:04:06.2]} 17. Bh6 {[%clk 0:03:55.1]} 17... Rg8 {[%clk 0:04:04.1]} 18. Qd2
{[%clk 0:03:47.5]} 18... h4 {[%clk 0:03:47.7]} 19. Ng5 {[%clk 0:03:38.3]} 19...
Qe8 {[%clk 0:03:41.3]} 20. Rg2 {[%clk 0:03:32.4]} 20... Nh5 {[%clk 0:03:38.8]}
21. Ne2 {[%clk 0:03:22.7]} 21... f6 {[%clk 0:03:33.2]} 22. Ne6 {[%clk
0:03:17.5]} 22... Rxg2+ {[%clk 0:03:29.9]} 23. Kxg2 {[%clk 0:03:16.4]} 23...
Qg8+ {[%clk 0:03:28]} 24. Kh2 {[%clk 0:03:10.9]} 24... Bxe6 {[%clk 0:03:22.3]}
25. Rg1 {[%clk 0:03:05.7]} 25... Qd8 {[%clk 0:03:11.3]} 26. dxe6 {[%clk
0:03:04]} 26... Qb6 {[%clk 0:03:02.2]} 27. b3 {[%clk 0:02:57.5]} 27... a5 {[%clk
0:02:59.2]} 28. Nc3 {[%clk 0:02:51.2]} 28... Bf8 {[%clk 0:02:54.8]} 29. Bxf8
{[%clk 0:02:46]} 29... Rxf8 {[%clk 0:02:54.7]} 30. Qh6 {[%clk 0:02:41]} 30...
Rg8 {[%clk 0:02:44]} 31. Rxg8+ {[%clk 0:02:34.7]} 31... Kxg8 {[%clk 0:02:43.9]}
32. Qxh5 {[%clk 0:02:33.2]} 32... Qb4 {[%clk 0:02:43.2]} 33. Qf7+ {[%clk
0:02:27.5]} 33... Kh8 {[%clk 0:02:41]} 34. Qf8# {[%clk 0:02:26.5]} 1-0

[Event "Live Chess"]
[Site "Chess.com"]
[Date "2023.05.21"]
[Round "-"]
[White "f4nomore"]
[Black "sanjesh_ananda"]
[Result "1-0"]
[WhiteElo "1413"]
[BlackElo "1266"]
[TimeControl "300"]
[EndTime "3:25:11 PDT"]
[Termination "f4nomore won on time"]

1. e4 {[%clk 0:04:57.7]} 1... e5 {[%clk 0:04:58.5]} 2. Nf3 {[%clk 0:04:55.8]}
2... Nf6 {[%clk 0:04:53.1]} 3. d3 {[%clk 0:04:54.8]} 3... Nc6 {[%clk 0:04:49.3]}
4. Be2 {[%clk 0:04:54.7]} 4... Be7 {[%clk 0:04:47.6]} 5. O-O {[%clk 0:04:53.3]}
5... O-O {[%clk 0:04:46.1]} 6. b3 {[%clk 0:04:52.4]} 6... d5 {[%clk 0:04:40.8]}
7. exd5 {[%clk 0:04:47.6]} 7... Nxd5 {[%clk 0:04:27.2]} 8. Bb2 {[%clk 0:04:44]}
8... Bf6 {[%clk 0:03:57]} 9. c4 {[%clk 0:04:39.7]} 9... Nf4 {[%clk 0:03:37.9]}
10. Nbd2 {[%clk 0:04:36.1]} 10... Nxe2+ {[%clk 0:03:17.3]} 11. Qxe2 {[%clk
0:04:34.4]} 11... Bg4 {[%clk 0:03:14.7]} 12. Ne4 {[%clk 0:04:31.2]} 12... Nd4
{[%clk 0:02:57.2]} 13. Bxd4 {[%clk 0:04:24.4]} 13... exd4 {[%clk 0:02:53.8]} 14.
h3 {[%clk 0:04:19.5]} 14... Bh5 {[%clk 0:02:47.3]} 15. g4 {[%clk 0:04:10.9]}
15... Bg6 {[%clk 0:02:45.3]} 16. g5 {[%clk 0:04:00.1]} 16... Be7 {[%clk
0:02:37.1]} 17. h4 {[%clk 0:03:56.5]} 17... Bh5 {[%clk 0:02:13.5]} 18. Kg2
{[%clk 0:03:46.6]} 18... Qd7 {[%clk 0:01:30.3]} 19. Ng3 {[%clk 0:03:38.1]} 19...
Qg4 {[%clk 0:00:21.8]} 20. Qe4 {[%clk 0:03:27.3]} 20... Qxe4 {[%clk 0:00:14.3]}
21. Nxe4 {[%clk 0:03:16.8]} 21... Bd6 {[%clk 0:00:09.2]} 22. Nxd4 {[%clk
0:03:13.9]} 22... Rfe8 {[%clk 0:00:06.5]} 23. Nf5 {[%clk 0:03:09.3]} 23... Be5
{[%clk 0:00:03]} 24. Rae1 {[%clk 0:02:57.2]} 24... Bg6 {[%clk 0:00:00.9]} 25.
Nfg3 {[%clk 0:02:08.6]} 25... Rad8 {[%clk 0:00:00.1]} 26. Re3 {[%clk 0:01:38.9]}
1-0

[Event "Live Chess"]
[Site "Chess.com"]
[Date "2023.05.21"]
[Round "-"]
[White "nigelst"]
[Black "Bunny55"]
[Result "1-0"]
[WhiteElo "1711"]
[BlackElo "945"]
[TimeControl "300"]
[EndTime "3:25:34 PDT"]
[Termination "nigelst won by resignation"]

1. e4 {[%clk 0:04:59.2]} 1... c5 {[%clk 0:04:57.1]} 2. Nf3 {[%clk 0:04:58]} 2...
d6 {[%clk 0:04:54.4]} 3. Bb5+ {[%clk 0:04:56.8]} 3... Nd7 {[%clk 0:04:52.6]} 4.
c3 {[%clk 0:04:54.6]} 4... a6 {[%clk 0:04:49.6]} 5. Ba4 {[%clk 0:04:53.5]} 5...
b5 {[%clk 0:04:48]} 6. Bc2 {[%clk 0:04:52.2]} 6... g6 {[%clk 0:04:46.9]} 7. O-O
{[%clk 0:04:51.2]} 7... Bg7 {[%clk 0:04:44.6]} 8. d4 {[%clk 0:04:49.8]} 8...
cxd4 {[%clk 0:04:42.4]} 9. cxd4 {[%clk 0:04:49]} 9... e6 {[%clk 0:04:41.3]} 10.
Nc3 {[%clk 0:04:47]} 10... Ne7 {[%clk 0:04:38.9]} 11. Bg5 {[%clk 0:04:43]} 11...
O-O {[%clk 0:04:30.5]} 12. Qd2 {[%clk 0:04:40]} 12... Nf6 {[%clk 0:04:25.2]} 13.
Rad1 {[%clk 0:04:32]} 13... b4 {[%clk 0:04:16.3]} 14. Ne2 {[%clk 0:04:26.2]}
14... Bb7 {[%clk 0:04:00.5]} 15. e5 {[%clk 0:04:22.1]} 15... Bxf3 {[%clk
0:03:51.2]} 16. exf6 {[%clk 0:04:17.9]} 16... Bxe2 {[%clk 0:03:38.8]} 17. fxe7
{[%clk 0:04:15]} 17... Qb6 {[%clk 0:03:21.4]} 18. exf8=Q+ {[%clk 0:04:12.6]}
18... Rxf8 {[%clk 0:03:08.2]} 19. Qxe2 {[%clk 0:04:11.3]} 19... Bxd4 {[%clk
0:03:02.4]} 20. Be3 {[%clk 0:04:07.2]} 1-0

[Event "Live Chess"]
[Site "Chess.com"]
[Date "2023.05.21"]
[Round "-"]
[White "wot-not"]
[Black "Shepherds_Pie"]
[Result "1-0"]
[WhiteElo "1557"]
[BlackElo "1936"]
[TimeControl "300"]
[EndTime "3:25:43 PDT"]
[Termination "wot-not won by checkmate"]

1. d4 {[%clk 0:04:57.9]} 1... d5 {[%clk 0:04:58.6]} 2. c4 {[%clk 0:04:57]} 2...
e6 {[%clk 0:04:57.2]} 3. Nc3 {[%clk 0:04:56]} 3... c5 {[%clk 0:04:55.6]} 4. e3
{[%clk 0:04:51]} 4... Nf6 {[%clk 0:04:53.4]} 5. Nf3 {[%clk 0:04:48.6]} 5... Nc6
{[%clk 0:04:52.4]} 6. cxd5 {[%clk 0:04:47.8]} 6... Nxd5 {[%clk 0:04:51]} 7. Bb5
{[%clk 0:04:46.4]} 7... a6 {[%clk 0:04:46.2]} 8. Bxc6+ {[%clk 0:04:45.1]} 8...
bxc6 {[%clk 0:04:45.4]} 9. O-O {[%clk 0:04:43.5]} 9... Be7 {[%clk 0:04:43.8]}
10. dxc5 {[%clk 0:04:41.8]} 10... Bxc5 {[%clk 0:04:42.1]} 11. Nxd5 {[%clk
0:04:41]} 11... cxd5 {[%clk 0:04:40.9]} 12. Bd2 {[%clk 0:04:37.4]} 12... O-O
{[%clk 0:04:39]} 13. Bc3 {[%clk 0:04:36.2]} 13... Qe7 {[%clk 0:04:34.5]} 14. a3
{[%clk 0:04:32.4]} 14... Re8 {[%clk 0:04:29.1]} 15. Ne5 {[%clk 0:04:27.5]} 15...
Bb7 {[%clk 0:04:24.3]} 16. Qg4 {[%clk 0:04:20.6]} 16... f6 {[%clk 0:04:21.9]}
17. Nd3 {[%clk 0:04:15]} 17... Bd6 {[%clk 0:04:20.3]} 18. Rac1 {[%clk
0:04:00.4]} 18... e5 {[%clk 0:04:18.4]} 19. Bb4 {[%clk 0:03:53.9]} 19... Bc8
{[%clk 0:04:15.5]} 20. Bxd6 {[%clk 0:03:51.2]} 20... Qxd6 {[%clk 0:04:14.3]} 21.
Qb4 {[%clk 0:03:36.9]} 21... Qe6 {[%clk 0:03:45.9]} 22. Rc7 {[%clk 0:03:21.9]}
22... a5 {[%clk 0:03:32.8]} 23. Qb3 {[%clk 0:03:00.1]} 23... Qd6 {[%clk
0:03:24.3]} 24. Rfc1 {[%clk 0:02:57.6]} 24... Be6 {[%clk 0:03:15.8]} 25. Qb7
{[%clk 0:02:45.1]} 25... Qf8 {[%clk 0:03:08.6]} 26. Nc5 {[%clk 0:02:14.4]} 26...
Bf5 {[%clk 0:03:04.4]} 27. h3 {[%clk 0:01:55.5]} 27... Rab8 {[%clk 0:02:56.2]}
28. Qa7 {[%clk 0:01:48.4]} 28... Rxb2 {[%clk 0:02:52.4]} 29. Nd7 {[%clk
0:01:42]} 29... Bxd7 {[%clk 0:02:49]} 30. Rxd7 {[%clk 0:01:40.8]} 30... Reb8
{[%clk 0:01:44.2]} 31. Rcc7 {[%clk 0:01:37.5]} 31... Rb1+ {[%clk 0:01:37.3]} 32.
Kh2 {[%clk 0:01:36.4]} 32... R1b7 {[%clk 0:01:29.1]} 33. Rxb7 {[%clk 0:01:27.2]}
33... Rxb7 {[%clk 0:01:25.6]} 34. Qxb7 {[%clk 0:01:25.5]} 34... h5 {[%clk
0:01:24.1]} 35. Rc7 {[%clk 0:01:21.9]} 35... Kh7 {[%clk 0:01:18.7]} 36. Qxd5
{[%clk 0:01:09.5]} 36... Kh6 {[%clk 0:01:16.6]} 37. Qf7 {[%clk 0:00:52.9]} 37...
Qh8 {[%clk 0:01:04.1]} 38. Ra7 {[%clk 0:00:48.1]} 38... Qh7 {[%clk 0:01:02]} 39.
Rxa5 {[%clk 0:00:39.3]} 39... Qf5 {[%clk 0:00:59.9]} 40. Ra7 {[%clk 0:00:32.1]}
40... Qg5 {[%clk 0:00:57.9]} 41. a4 {[%clk 0:00:28.2]} 41... h4 {[%clk 0:00:50]}
42. a5 {[%clk 0:00:26.2]} 42... e4 {[%clk 0:00:45.3]} 43. Qxg7+ {[%clk
0:00:18.3]} 43... Qxg7 {[%clk 0:00:43.3]} 44. Rxg7 {[%clk 0:00:18.1]} 44... Kxg7
{[%clk 0:00:42.1]} 45. a6 {[%clk 0:00:17.9]} 45... Kg6 {[%clk 0:00:41.4]} 46. a7
{[%clk 0:00:17.7]} 46... Kf5 {[%clk 0:00:41.2]} 47. a8=Q {[%clk 0:00:17.4]}
47... Ke5 {[%clk 0:00:41.1]} 48. Qc6 {[%clk 0:00:15.6]} 48... Kf5 {[%clk
0:00:38.6]} 49. Qd5+ {[%clk 0:00:14.3]} 49... Kg6 {[%clk 0:00:37.3]} 50. Qxe4+
{[%clk 0:00:13.5]} 50... f5 {[%clk 0:00:36.4]} 51. Qxh4 {[%clk 0:00:12.2]} 51...
Kf7 {[%clk 0:00:35]} 52. Qf4 {[%clk 0:00:11.3]} 52... Ke6 {[%clk 0:00:34.9]} 53.
h4 {[%clk 0:00:10.8]} 53... Kf6 {[%clk 0:00:34.7]} 54. h5 {[%clk 0:00:10.2]}
54... Kg7 {[%clk 0:00:34]} 55. Qxf5 {[%clk 0:00:09.3]} 55... Kh6 {[%clk
0:00:33.2]} 56. Qg6# {[%clk 0:00:08.8]} 1-0

[Event "Live Chess"]
[Site "Chess.com"]
[Date "2023.05.21"]
[Round "-"]
[White "chessfiction"]
[Black "WombatIn_A_Box"]
[Result "1-0"]
[WhiteElo "2319"]
[BlackElo "570"]
[TimeControl "300"]
[EndTime "3:25:52 PDT"]
[Termination "chessfiction won by checkmate"]

1. e4 {[%clk 0:04:59.5]} 1... e5 {[%clk 0:04:54.6]} 2. Bc4 {[%clk 0:04:58]} 2...
Nf6 {[%clk 0:04:51.2]} 3. Nf3 {[%clk 0:04:56.2]} 3... Nxe4 {[%clk 0:04:49.6]} 4.
Qe2 {[%clk 0:04:49.6]} 4... d5 {[%clk 0:04:45]} 5. Bb3 {[%clk 0:04:48.6]} 5...
c6 {[%clk 0:04:42.3]} 6. Nxe5 {[%clk 0:04:45.6]} 6... Bd6 {[%clk 0:04:39.4]} 7.
d4 {[%clk 0:04:42.3]} 7... f6 {[%clk 0:04:37.3]} 8. Qh5+ {[%clk 0:04:37.1]} 8...
g6 {[%clk 0:04:35.6]} 9. Nxg6 {[%clk 0:04:36.4]} 9... hxg6 {[%clk 0:04:34.6]}
10. Qxh8+ {[%clk 0:04:35.3]} 10... Kd7 {[%clk 0:04:32]} 11. Qxd8+ {[%clk
0:04:30]} 11... Kxd8 {[%clk 0:04:31.9]} 12. f3 {[%clk 0:04:29.3]} 12... Ng5
{[%clk 0:04:25.6]} 13. Bxg5 {[%clk 0:04:27.3]} 13... fxg5 {[%clk 0:04:24.4]} 14.
Nc3 {[%clk 0:04:26.4]} 14... g4 {[%clk 0:04:21.1]} 15. O-O {[%clk 0:04:24.2]}
15... gxf3 {[%clk 0:04:13]} 16. Rxf3 {[%clk 0:04:24.1]} 16... Bg4 {[%clk
0:04:10.3]} 17. Rf7 {[%clk 0:04:21.7]} 17... Nd7 {[%clk 0:04:04.5]} 18. Re1
{[%clk 0:04:11]} 18... Kc7 {[%clk 0:03:48]} 19. h3 {[%clk 0:04:10]} 19... Bf5
{[%clk 0:03:41.8]} 20. g4 {[%clk 0:04:08.5]} 20... Bd3 {[%clk 0:03:34.9]} 21.
cxd3 {[%clk 0:04:06.1]} 21... Kb6 {[%clk 0:03:30.2]} 22. Rxd7 {[%clk 0:04:03.9]}
22... Rf8 {[%clk 0:03:25.3]} 23. Rxd6 {[%clk 0:04:02.3]} 23... a5 {[%clk
0:03:17]} 24. Nxd5+ {[%clk 0:04:01.1]} 24... Kb5 {[%clk 0:03:15.5]} 25. Bc4+
{[%clk 0:03:57.7]} 25... Ka4 {[%clk 0:03:11.7]} 26. Nc3+ {[%clk 0:03:54.9]}
26... Kb4 {[%clk 0:03:08.9]} 27. a3# {[%clk 0:03:54.5]} 1-0

[Event "Live Chess"]
[Site "Chess.com"]
[Date "2023.05.21"]
[Round "-"]
[White "KeithArkell"]
[Black "chessleanstrategist"]
[Result "1-0"]
[WhiteElo "2496"]
[BlackElo "430"]
[TimeControl "300"]
[EndTime "3:26:02 PDT"]
[Termination "KeithArkell won by resignation"]

1. d4 {[%clk 0:04:58.3]} 1... Nf6 {[%clk 0:04:57.4]} 2. Nf3 {[%clk 0:04:56.5]}
2... g6 {[%clk 0:04:53]} 3. c4 {[%clk 0:04:55.4]} 3... d5 {[%clk 0:04:39]} 4.
cxd5 {[%clk 0:04:53.2]} 4... Nxd5 {[%clk 0:04:36]} 5. Nc3 {[%clk 0:04:53.1]}
5... Nxc3 {[%clk 0:04:34.5]} 6. bxc3 {[%clk 0:04:51.6]} 6... Bg7 {[%clk
0:04:31.6]} 7. g3 {[%clk 0:04:51]} 7... O-O {[%clk 0:04:29.5]} 8. Bg2 {[%clk
0:04:50.3]} 8... Nc6 {[%clk 0:04:24.6]} 9. O-O {[%clk 0:04:48.6]} 9... b6 {[%clk
0:04:19.6]} 10. Ne5 {[%clk 0:04:46.7]} 10... Nxe5 {[%clk 0:04:18]} 11. Bxa8
{[%clk 0:04:44.5]} 11... Bd7 {[%clk 0:04:01.5]} 12. Bg2 {[%clk 0:04:42.3]} 12...
c5 {[%clk 0:03:51.9]} 13. dxe5 {[%clk 0:04:40.9]} 13... Bxe5 {[%clk 0:03:46.6]}
14. Bh6 {[%clk 0:04:39.7]} 14... Re8 {[%clk 0:03:38.3]} 15. Rc1 {[%clk 0:04:35]}
15... Bg7 {[%clk 0:03:27.9]} 16. Bxg7 {[%clk 0:04:33.6]} 16... Kxg7 {[%clk
0:03:26.7]} 17. Qd3 {[%clk 0:04:31.1]} 17... e5 {[%clk 0:03:10.8]} 18. Rfd1
{[%clk 0:04:28.9]} 18... Bf5 {[%clk 0:02:52.2]} 19. Qxd8 {[%clk 0:04:26.8]}
19... Rxd8 {[%clk 0:02:50.6]} 20. Rxd8 {[%clk 0:04:25.7]} 1-0